Cogmind - Beta 14 @@@ ROGUE MODE // 2024.11.30 @ 17:32:16 Player: Leif Result: Destroyed by S-10 Pest with Light Assault Rifle Performance ------------- Evolutions (1) 500 Regions Visited (3) 600 Robots Destroyed (15) 75 Value Destroyed (398) 398 Prototype IDs (0) 0 Alien Tech Used (0) 0 Bonus (0) 0 TOTAL SCORE: 1573 Bonus ------- None Cogmind --------- Core Integrity 0/400 Matter 299/300 Energy 99/100 System Corruption 17% Temperature Warm (151) Movement Core (50) Location -9/Mines Parts ------- > --- POWER (1) -------- (None) > --- PROPULSION (3) --- (None) > --- UTILITY (3) ------ (None) > --- WEAPON (2) ------- (None) > --- INVENTORY (5) ---- Aluminum Leg Aluminum Leg Rocket Launcher Peak State ------------ > --- POWER ------------ Light Nuclear Core > --- PROPULSION ------- Light Treads Light Treads Wheel > --- UTILITY ---------- Small Storage Unit Weight Redist. System > --- WEAPON ----------- Light Assault Rifle Light Assault Rifle > --- INVENTORY -------- Light Ion Engine Aluminum Leg Aluminum Leg [Rating: 11] Favorites ----------- Power Light Ion Engine Engine Light Ion Engine Power Core Light Nuclear Core Propulsion Wheel Treads Light Treads Leg Aluminum Leg Wheel Wheel Utility Small Storage Unit Device Weight Redist. System Storage Small Storage Unit Protection Medium Armor Plating Weapon Light Assault Rifle Energy Gun Small Laser Ballistic Gun Light Assault Rifle Build | -11 -10 -9 -9 ------- Run | Yrd Mat Mat Min Slots Evolved 2 | . . 2 . Power . | . . . . Propulsion 1 | . . 1 . Utility 1 | . . 1 . Weapon . | . . . . Parts Attached 17 | 6 . 2 9 Power 3 | 1 . . 2 Engine 2 | 1 . . 1 Core 1 | . . . 1 Reactor . | . . . . Propulsion 6 | 2 . . 4 Treads 2 | . . . 2 Leg 2 | . . . 2 Wheel 2 | 2 . . . Hover . | . . . . Flight . | . . . . Utility 3 | 1 . 2 . Device 1 | . . 1 . Storage 1 | 1 . . . Processor . | . . . . Hackware . | . . . . Protection 1 | . . 1 . Artifact . | . . . . Weapon 5 | 2 . . 3 Energy Gun 2 | . . . 2 Energy Cannon . | . . . . Ballistic Gun 3 | 2 . . 1 Ballistic Cannon . | . . . . Launcher . | . . . . Special Weapon . | . . . . Impact Weapon . | . . . . Slashing Weapon . | . . . . Piercing Weapon . | . . . . Special Melee Weapon . | . . . . Unidentified Prototypes . | . . . . Parts Lost 13 | . . 1 12 Power 3 | . . . 3 Propulsion 3 | . . . 3 Utility 2 | . . 1 1 Weapon 5 | . . . 5 Highest Loss Streak 7 | . . 1 7 To Critical Strikes . | . . . . Average Slot Usage (%) 31 | . 85 80 15 Engine 8 | . 14 11 7 Treads 1 | . . . 1 Wheel 5 | . 28 22 . Device 1 | . . 4 . Storage 5 | . 14 11 3 Protection 2 | . . 10 . Ballistic Gun 6 | . 28 22 1 Peak Build Rating 11 | 6 6 10 11 Average Rating 3 | 3 6 8 1 On Entrance 5 | . 6 6 8 Naked Turns 42 | . . . 42 Heaviest Build 20 | 13 13 20 12 Greatest Support 46 | 20 20 26 46 Greatest Overweight (x) 1 | 1 . . 1 Average Overweight (x) . | . . . . Largest Inventory Capacity 8 | 8 8 8 8 Average Capacity 6 | 7 8 8 5 Most Carried 8 | 8 6 7 6 Average Carried 3 | 4 6 6 2 Final Capacity 8 | 8 8 8 5 Final Carried 6 | 6 6 6 3 Class Distribution -------------------- 100% | Mutant Dominant Class ---------------- Mutant | -10/Materials Mutant | -9/Materials Mutant | -9/Mines Resources | -11 -10 -9 -9 ----------- Run | Yrd Mat Mat Min Matter Collected 618 | 174 87 155 202 Remotely . | . . . . Salvage Created 479 | . 87 214 178 Parts 35 | . 6 21 8 Haulers Intercepted . | . . . . Recyclers Shooed 1 | . . 1 . Parts Field Recycled . | . . . . Retrieved Matter . | . . . . Parts Self-Destructed . | . . . . Prevented . | . . . . Kills | -11 -10 -9 -9 ------- Run | Yrd Mat Mat Min Combat Hostiles Destroyed 16 | . 2 8 6 Guns 16 | . 2 8 6 Classes Destroyed 5 | . 1 3 1 Worker 1 | . . 1 . Swarmer 5 | . . 5 . Grunt 8 | . 2 2 4 Brawler 1 | . . 1 . Assembled 2 | . . . 2 Best Kill Streak 3 | . 2 3 3 Combat Bots Only 3 | . 2 3 3 Max Kills in Single Turn 1 | . 1 1 1 Gunslinging . | . . . . Exploded . | . . . . Melee . | . . . . Uniques/NPCs Destroyed . | . . . . Combat | -11 -10 -9 -9 -------- Run | Yrd Mat Mat Min Hostile Shots Fired 153 | . 4 61 88 Missed 37 | . 1 17 19 Damage Taken 1638 | . 46 431 1161 Core 434 | . 34 93 307 Absorbed by Shields . | . . . . Core Remaining (%) 93 | 100 86 . . Volleys Fired 73 | . 5 30 38 Largest 2 | . 2 2 2 Hottest 105 | . 40 40 105 Shots Fired 126 | . 10 60 56 Gun 126 | . 10 60 56 Cannon . | . . . . Launcher . | . . . . Special . | . . . . Kinetic 106 | . 10 60 36 Thermal 20 | . . . 20 Explosive . | . . . . Electromagnetic . | . . . . Robot Hit Streak 19 | . 7 9 19 Robot Miss Streak 6 | . 2 6 5 Penetration Max . | . . . . Secondary Targets 4 | . . 2 2 Max Gunslinging Chain 1 | . . 1 1 Shots Hit Robots 77 | . 7 34 36 Core Hits 36 | . 5 16 15 Critical Kills . | . . . . Critical Parts Destroyed . | . . . . Critical Strikes . | . . . . Melee Attacks . | . . . . Impact . | . . . . Slashing . | . . . . Piercing . | . . . . Sneak Attacks . | . . . . Combat Hostiles . | . . . . Follow-up Attacks . | . . . . Damage Inflicted 832 | . 76 372 384 Guns 821 | . 76 370 375 Cannons . | . . . . Explosions . | . . . . Melee . | . . . . Ramming 11 | . . 2 9 Kinetic 654 | . 76 370 208 Thermal 167 | . . . 167 Explosive . | . . . . Electromagnetic . | . . . . Impact . | . . . . Slashing . | . . . . Piercing . | . . . . Highest Corruption 17 | . . . 17 Average Corruption 16 | . . . 16 Corruption Purged . | . . . . Corruption Blocked . | . . . . Effects 71 | . . . 71 Message Errors 19 | . . . 19 Matter Fused 17 | . . . 17 Heat Flow Errors 9 | . . . 9 Energy Discharges 11 | . . . 11 Data Loss (minor) 12 | . . . 12 Data Loss (major) 2 | . . . 2 Misfires 1 | . . . 1 Overload Shots . | . . . . Overflow Damage . | . . . . Projectiles . | . . . . Explosions . | . . . . Melee . | . . . . Knockbacks . | . . . . Impact . | . . . . Kinetic . | . . . . Secondary . | . . . . Self-Inflicted Damage 1 | . . 1 . Shots . | . . . . Rammed 8 | . . 1 7 Targets Rammed 8 | . . 1 7 Kicked . | . . . . Crushed . | . . . . Highest Temperature 263 | . 9 12 263 Average Temperature 60 | . 9 6 72 Received Heat Transfer 374 | . 24 108 242 Siege Activations . | . . . . Robots Corrupted . | . . . . Combat Hostiles . | . . . . Parts Fried . | . . . . Impact Corruptions . | . . . . Robots Melted . | . . . . Combat Hostiles . | . . . . Parts Melted . | . . . . Heat Transferred 373 | . . . 373 Parts Sabotaged . | . . . . Parts Stolen . | . . . . Parts Stripped . | . . . . Power Chain Reactions . | . . . . Alert | -11 -10 -9 -9 ------- Run | Yrd Mat Mat Min Peak Influence 211 | . 90 211 90 Initial 37 | . . 37 9 Average 25 | . 42 59 16 Maximum Alert Level 1 | . . 1 . Low Security (%) 99 | 100 100 99 100 Level 1 . | . . . . Level 2 . | . . . . Level 3 . | . . . . Level 4 . | . . . . Level 5 . | . . . . High Security . | . . . . Max Security . | . . . . Squads Dispatched 1 | . 1 . . Investigation . | . . . . Extermination . | . . . . Reinforcement 1 | . 1 . . Assault . | . . . . Garrison . | . . . . Intercept . | . . . . Searches Triggered . | . . . . Construction Impeded . | . . . . Haulers Reinforced . | . . . . Active Scanning Responses . | . . . . Cargo Convoy Interrupts . | . . . . Stealth | -11 -10 -9 -9 --------- Run | Yrd Mat Mat Min Distress Signals 3 | . 1 2 . Communications Jammed . | . . . . Distress Signals . | . . . . Times Spotted 45 | . 5 15 25 Peak Tracking Total 13 | . 5 6 13 Tactical Retreats 8 | . 1 . 7 Traps | -11 -10 -9 -9 ------- Run | Yrd Mat Mat Min Traps Triggered . | . . . . Indirectly . | . . . . Trap Hack Attempts . | . . . . Triggered . | . . . . Disarmed . | . . . . Reprogrammed . | . . . . Reused . | . . . . Traps Extracted . | . . . . Installed . | . . . . Triggered . | . . . . Machines | -11 -10 -9 -9 ---------- Run | Yrd Mat Mat Min Machines Disabled . | . . . . Max in Single Turn . | . . . . Machines Repaired . | . . . . Machines Dismantled . | . . . . Machines Sabotaged . | . . . . Overloaded Fab Kills . | . . . . Hacking | -11 -10 -9 -9 --------- Run | Yrd Mat Mat Min Machines Accessed 3 | . 2 1 . Terminals 2 | . 1 1 . Fabricators . | . . . . Repair Stations . | . . . . Recycling Units 1 | . 1 . . Scanalyzers . | . . . . Garrison Access . | . . . . Total Hacks 8 | . 7 1 . Successful 4 | . 3 1 . Failed 4 | . 4 . . Catastrophic . | . . . . Database Lockouts . | . . . . Manual 2 | . 2 . . Terminals 5 | . 4 1 . Fabricators . | . . . . Repair Stations . | . . . . Recycling Units 3 | . 3 . . Scanalyzers . | . . . . Garrison Access . | . . . . Terminal Hacks 3 | . 2 1 . Record 1 | . 1 . . Alert Level 1 | . 1 . . Locate Traps 1 | . . 1 . Fabricator Hacks . | . . . . Repair Station Hacks . | . . . . Recycling Unit Hacks 1 | . 1 . . Retrieve Matter 1 | . 1 . . Scanalyzer . | . . . . Garrison Access Hacks . | . . . . Unauthorized Hacks . | . . . . Terminals . | . . . . Fabricators . | . . . . Repair Stations . | . . . . Recycling Units . | . . . . Scanalyzers . | . . . . Garrison Access . | . . . . Data Cores Recovered . | . . . . Used . | . . . . Hacking Detections 3 | . 2 1 . Full Trace Events . | . . . . Feedback Events . | . . . . Feedback Blocked . | . . . . Robot Schematics Acquired . | . . . . Robots Built . | . . . . Authchips . | . . . . Time . | . . . . Total Robot Build Rating . | . . . . Part Schematics Acquired . | . . . . Parts Built . | . . . . Authchips . | . . . . Time . | . . . . Total Part Build Rating . | . . . . Parts Repaired . | . . . . Time . | . . . . Parts Recycled . | . . . . Recycled Matter . | . . . . Retrieved Matter . | . . . . Retrieved Components . | . . . . Parts Scanalyzed . | . . . . Part Schematics Acquired . | . . . . Parts Damaged . | . . . . Bothacking | -11 -10 -9 -9 ------------ Run | Yrd Mat Mat Min Used RIF Installer . | . . . . Robots Hacked . | . . . . Non-combat . | . . . . Combat . | . . . . Robot Hacks Applied . | . . . . Relay Couplers Released . | . . . . Fabnet Peak Effective % . | . . . . Robots Rewired . | . . . . Allies Hacked . | . . . . Hacks Repelled . | . . . . Allies | -11 -10 -9 -9 -------- Run | Yrd Mat Mat Min Total Allies . | . . . . Largest Group . | . . . . Highest-Rated Group . | . . . . Highest-Rated Ally . | . . . . Total Orders . | . . . . Ally Attacks . | . . . . Total Damage . | . . . . Kills . | . . . . Allies Corrupted . | . . . . Allies Melted . | . . . . Intel | -11 -10 -9 -9 ------- Run | Yrd Mat Mat Min Robot Analysis Total . | . . . . Derelict Logs Recovered 1 | . . . 1 Drone Launches . | . . . . Drone Recoveries . | . . . . Exploration | -11 -10 -9 -9 ------------- Run | Yrd Mat Mat Min Turns Passed 2318 | 53 102 446 1717 Spaces Moved 864 | 45 93 156 570 Core 553 | 14 . . 539 Treads 27 | . . . 27 Legs . | . . . . Wheels 284 | 31 93 156 4 Hover . | . . . . Flight . | . . . . Fastest Speed 50 | 50 80 80 50 Average Speed 65 | 76 80 80 58 Slowest Speed 160 | 100 80 80 160 Overloaded Moves . | . . . . Propulsion Burnouts . | . . . . Robots Hopped . | . . . . Cave-ins Triggered . | . . . . Exploration Rate (%) 26 | 3 19 18 65 Regions Visited 3 Branch Regions 1 Pre-discovered Areas 2 | . . . 2 Known Exits Taken . | . . . . Unknown Exits Taken 3 | 1 1 1 . Scrap Searched . | . . . . Spaces Dug . | . . . . Terrain Destroyed . | . . . . Melee . | . . . . Projectile . | . . . . AOE . | . . . . Terrain Rammed . | . . . . Walls Destroyed . | . . . . Machines Disabled . | . . . . Actions | -11 -10 -9 -9 --------- Run | Yrd Mat Mat Min Total 2499 | 63 111 423 1902 Wait 1518 | 1 14 233 1270 Move 862 | 44 92 156 570 Hop . | . . . . Pick Up 18 | 12 . 2 4 Fast Attach . | . . . . Attach 17 | 6 . 2 9 Detach 2 | . . . 2 Swap . | . . . . Drop 2 | . . . 2 Fire 73 | . 5 30 38 Melee . | . . . . Ram . | . . . . Kick . | . . . . Crush 7 | . . . 7 Escape Stasis . | . . . . Rewire . | . . . . Trap . | . . . . Miscellaneous . | . . . . Route ------- -11/Scrapyard -10/Materials -9/Materials -9/Mines History --------- Turn | Location | Event 26 | -11/Scrapyard | Discovered new exit (range 16) 54 | -11/Scrapyard | Entered Materials 131 | -10/Materials | Discovered new exit (range 13) 156 | -10/Materials | Entered another Materials area 156 | -9/Materials | Evolved 2 slots: Propulsion x1, Utility x1 309 | -9/Materials | Build established: Mutant 588 | -9/Materials | Discovered new exit (range 15) 602 | -9/Materials | Entered Mines 603 | -9/Mines | Assembled infested the area 639 | -9/Mines | Lost 4 parts (1p1n1u1w) 672 | -9/Mines | Core integrity fell below 50% 693 | -9/Mines | System corruption reached 10% 747 | -9/Mines | Core integrity fell below 20% 773 | -9/Mines | Lost 7 parts (1p2n1u3w) 1190 | -9/Mines | Learned location of Storage (-7) 1322 | -9/Mines | Received a Rocket Launcher from a helpful Derelict 2319 | -9/Mines | Destroyed by S-10 Pest with Light Assault Rifle Last Messages --------------- 02037_ ,UPQ<>Z>BKTWPVR,4IJ#UGXS6 02053_ System corrupted: Component data lost. 02070_ System corrupted: Energy discharge (-40). 02091_ Z%GNEP4X=J| JASS60W:#1 02123_ MJF0LUZHRJJVUWRBEZ0CI&#/X 02140_ System corrupted: Heat flow error (+171). 02157_ System corrupted: Matter fused (-10). 02173_ System corrupted: Matter fused (-9). 02180_ Acquired 15 matter. 02181_ Acquired 4 matter. 02194_ System corrupted: Component data lost. 02198_ Acquired 14 matter. 02215_ System corrupted: Heat flow error (+143). 02232_ System corrupted: Component data lost. 02249_ System corrupted: Matter fused (-5). 02268_ C1FZ2